[Event "Titled Tuesday Blitz September 13 Early 2022"]
[White "Papasimakopoulos, Alexandros"]
[Black "Svane, Rasmus"]
[WhiteFideId "4244125"]
[BlackFideId "4657101"]
[WhiteElo "2357"]
[BlackElo "2674"]
[Result "0-1"]
[Round "03"]
[TimeControl "180+1"]
[Date "2022.09.13"]
[WhiteClock "0:00:21"]
[BlackClock "0:00:16"]

1. d4 {[%clk 0:03:00]}  Nf6 {[%clk 0:02:58]} 2. c4 {[%clk 0:03:01]}  e6 {[%clk 0:02:58]} 3. Nc3 {[%clk 0:03:01]}  Bb4 {[%clk 0:02:58]} 4. Qc2 {[%clk 0:03:01]}  d5 {[%clk 0:02:56]} 5. cxd5 {[%clk 0:03:01]}  exd5 {[%clk 0:02:57]} 6. Bg5 {[%clk 0:03:01]}  h6 {[%clk 0:02:57]} 7. Bh4 {[%clk 0:03:01]}  g5 {[%clk 0:02:57]} 8. Bg3 {[%clk 0:03:01]}  Nc6 {[%clk 0:02:57]} 9. e3 {[%clk 0:03:01]}  h5 {[%clk 0:02:58]} 10. Bb5 {[%clk 0:03:01]}  h4 {[%clk 0:02:57]} 11. Be5 {[%clk 0:03:02]}  O-O {[%clk 0:02:57]} 12. Bxc6 {[%clk 0:03:02]}  bxc6 {[%clk 0:02:58]} 13. h3 {[%clk 0:03:03]}  Ne4 {[%clk 0:02:41]} 14. Ne2 {[%clk 0:03:02]}  Bf5 {[%clk 0:02:25]} 15. Qa4 {[%clk 0:02:47]}  Bxc3+ {[%clk 0:01:56]} 16. bxc3 {[%clk 0:02:44]}  f6 {[%clk 0:01:52]} 17. Bh2 {[%clk 0:02:43]}  Qd7 {[%clk 0:01:48]} 18. Qa5 {[%clk 0:02:32]}  Rfb8 {[%clk 0:01:37]} 19. f3 {[%clk 0:02:26]}  Nd6 {[%clk 0:01:34]} 20. Bxd6 {[%clk 0:02:23]}  Qxd6 {[%clk 0:01:29]} 21. O-O {[%clk 0:02:20]}  Rb2 {[%clk 0:01:26]} 22. Rf2 {[%clk 0:02:18]}  Bd3 {[%clk 0:01:19]} 23. Re1 {[%clk 0:02:09]}  Re8 {[%clk 0:01:16]} 24. c4 {[%clk 0:01:21]}  Rxe3 {[%clk 0:01:13]} 25. Qc3 {[%clk 0:01:15]}  Rc2 {[%clk 0:01:03]} 26. Qb3 {[%clk 0:01:13]}  dxc4 {[%clk 0:01:03]} 27. Qb8+ {[%clk 0:01:07]}  Kg7 {[%clk 0:01:00]} 28. f4 {[%clk 0:01:01]}  Rexe2 {[%clk 0:00:58]} 29. Rexe2 {[%clk 0:01:00]}  Rxe2 {[%clk 0:00:56]} 30. Rxe2 {[%clk 0:01:00]}  Bxe2 {[%clk 0:00:56]} 31. fxg5 {[%clk 0:01:00]}  Qxd4+ {[%clk 0:00:51]} 32. Kh1 {[%clk 0:00:58]}  Qd1+ {[%clk 0:00:50]} 33. Kh2 {[%clk 0:00:58]}  Qd6+ {[%clk 0:00:36]} 34. Kh1 {[%clk 0:00:58]}  Bd3 {[%clk 0:00:32]} 35. gxf6+ {[%clk 0:00:58]}  Kxf6 {[%clk 0:00:32]} 36. Qh8+ {[%clk 0:00:58]}  Kf7 {[%clk 0:00:31]} 37. Qh5+ {[%clk 0:00:52]}  Ke6 {[%clk 0:00:28]} 38. Qh6+ {[%clk 0:00:45]}  Kd5 {[%clk 0:00:27]} 39. Qg5+ {[%clk 0:00:45]}  Qe5 {[%clk 0:00:27]} 40. Qxh4 {[%clk 0:00:44]}  c3 {[%clk 0:00:25]} 41. Qd8+ {[%clk 0:00:39]}  Ke4 {[%clk 0:00:25]} 42. Qh4+ {[%clk 0:00:34]}  Ke3 {[%clk 0:00:24]} 43. Qe1+ {[%clk 0:00:34]}  Kd4 {[%clk 0:00:24]} 44. Qg1+ {[%clk 0:00:30]}  Qe3 {[%clk 0:00:23]} 45. Qa1 {[%clk 0:00:31]}  Kc4 {[%clk 0:00:21]} 46. a4 {[%clk 0:00:30]}  c2 {[%clk 0:00:21]} 47. Qa2+ {[%clk 0:00:31]}  Kd4 {[%clk 0:00:20]} 48. Qb2+ {[%clk 0:00:31]}  Ke4 {[%clk 0:00:20]} 49. Qb4+ {[%clk 0:00:31]}  Kd5 {[%clk 0:00:18]} 50. Qb3+ {[%clk 0:00:31]}  Kd6 {[%clk 0:00:16]} 51. Qa3+ {[%clk 0:00:21]}  c5 {[%clk 0:00:16]} 0-1


[Site "https://www.chess.com"]

[Event "Titled Tuesday Blitz September 13 Early 2022"]
[White "Sadhwani, Raunak"]
[Black "Amin, Bassem"]
[WhiteFideId "35093487"]
[BlackFideId "10601457"]
[WhiteElo "2997"]
[BlackElo "2764"]
[Result "0-1"]
[Round "03"]
[TimeControl "180+1"]
[Date "2022.09.13"]
[WhiteClock "0:01:52"]
[BlackClock "0:01:57"]

1. e4 {[%clk 0:03:00]}  e5 {[%clk 0:02:59]} 2. Nf3 {[%clk 0:03:01]}  Nc6 {[%clk 0:03:00]} 3. Bc4 {[%clk 0:03:02]}  Nf6 {[%clk 0:03:00]} 4. d3 {[%clk 0:03:02]}  h6 {[%clk 0:02:59]} 5. c3 {[%clk 0:03:03]}  Bc5 {[%clk 0:02:57]} 6. d4 {[%clk 0:02:57]}  exd4 {[%clk 0:02:56]} 7. e5 {[%clk 0:02:57]}  d5 {[%clk 0:02:51]} 8. exf6 {[%clk 0:02:36]}  dxc4 {[%clk 0:02:47]} 9. fxg7 {[%clk 0:02:37]}  Rg8 {[%clk 0:02:46]} 10. Bxh6 {[%clk 0:02:36]}  Qe7+ {[%clk 0:02:42]} 11. Kf1 {[%clk 0:02:31]}  Bf5 {[%clk 0:02:24]} 12. cxd4 {[%clk 0:01:54]}  O-O-O {[%clk 0:02:18]} 13. Be3 {[%clk 0:01:54]}  Rxg7 {[%clk 0:02:10]} 14. Nc3 {[%clk 0:01:53]}  Bd3+ {[%clk 0:02:07]} 15. Kg1 {[%clk 0:01:53]}  Rxg2+ {[%clk 0:01:56]} 16. Kxg2 {[%clk 0:01:52]}  Rg8+ {[%clk 0:01:57]} 0-1


[Site "https://www.chess.com"]

[Event "Titled Tuesday Blitz September 13 Early 2022"]
[White "Skliarov, Viktor"]
[Black "Bacrot, Etienne"]
[WhiteFideId "14106736"]
[BlackFideId "605506"]
[WhiteElo "2213"]
[BlackElo "2666"]
[Result "0-1"]
[Round "03"]
[TimeControl "180+1"]
[Date "2022.09.13"]
[WhiteClock "0:00:10"]
[BlackClock "0:00:43"]

1. e4 {[%clk 0:03:00]}  c5 {[%clk 0:03:00]} 2. Nf3 {[%clk 0:03:00]}  d6 {[%clk 0:03:00]} 3. d4 {[%clk 0:03:00]}  cxd4 {[%clk 0:03:01]} 4. Qxd4 {[%clk 0:03:00]}  Nf6 {[%clk 0:03:01]} 5. Nc3 {[%clk 0:03:00]}  Nc6 {[%clk 0:03:01]} 6. Bb5 {[%clk 0:03:01]}  Bd7 {[%clk 0:03:01]} 7. Bxc6 {[%clk 0:03:01]}  Bxc6 {[%clk 0:03:00]} 8. Bg5 {[%clk 0:03:01]}  Qa5 {[%clk 0:02:55]} 9. O-O-O {[%clk 0:03:01]}  Rc8 {[%clk 0:02:53]} 10. Kb1 {[%clk 0:02:57]}  Nd7 {[%clk 0:02:47]} 11. Rhe1 {[%clk 0:02:44]}  e6 {[%clk 0:02:44]} 12. h4 {[%clk 0:02:23]}  h6 {[%clk 0:02:39]} 13. Be3 {[%clk 0:02:21]}  a6 {[%clk 0:02:36]} 14. Nd2 {[%clk 0:02:05]}  b5 {[%clk 0:02:29]} 15. Nb3 {[%clk 0:02:05]}  Qc7 {[%clk 0:02:27]} 16. f4 {[%clk 0:01:36]}  Ba8 {[%clk 0:02:24]} 17. g4 {[%clk 0:01:16]}  Qc4 {[%clk 0:02:14]} 18. Na5 {[%clk 0:00:49]}  Qxd4 {[%clk 0:02:11]} 19. Bxd4 {[%clk 0:00:50]}  Rg8 {[%clk 0:01:40]} 20. a3 {[%clk 0:00:40]}  Be7 {[%clk 0:01:40]} 21. g5 {[%clk 0:00:38]}  Nc5 {[%clk 0:01:15]} 22. f5 {[%clk 0:00:19]}  hxg5 {[%clk 0:01:14]} 23. hxg5 {[%clk 0:00:19]}  Bxg5 {[%clk 0:01:14]} 24. Rg1 {[%clk 0:00:17]}  Nxe4 {[%clk 0:01:09]} 25. Nxe4 {[%clk 0:00:14]}  Bxe4 {[%clk 0:01:09]} 26. Rxg5 {[%clk 0:00:14]}  Bxc2+ {[%clk 0:01:08]} 27. Kc1 {[%clk 0:00:14]}  Bxd1+ {[%clk 0:00:51]} 28. Kxd1 {[%clk 0:00:15]}  e5 {[%clk 0:00:51]} 29. Be3 {[%clk 0:00:15]}  f6 {[%clk 0:00:50]} 30. Rg2 {[%clk 0:00:12]}  d5 {[%clk 0:00:50]} 31. Nb3 {[%clk 0:00:09]}  d4 {[%clk 0:00:50]} 32. Bd2 {[%clk 0:00:10]}  Kf7 {[%clk 0:00:50]} 33. Bb4 {[%clk 0:00:10]}  Rh8 {[%clk 0:00:50]} 34. Nc5 {[%clk 0:00:10]}  a5 {[%clk 0:00:49]} 35. Ne4 {[%clk 0:00:10]}  axb4 {[%clk 0:00:49]} 36. Nd6+ {[%clk 0:00:11]}  Ke7 {[%clk 0:00:50]} 37. Nxc8+ {[%clk 0:00:10]}  Rxc8 {[%clk 0:00:50]} 38. Rxg7+ {[%clk 0:00:11]}  Kd6 {[%clk 0:00:44]} 39. Rf7 {[%clk 0:00:11]}  e4 {[%clk 0:00:44]} 40. Rxf6+ {[%clk 0:00:11]}  Ke5 {[%clk 0:00:45]} 41. Rb6 {[%clk 0:00:11]}  Kxf5 {[%clk 0:00:43]} 42. Rxb5+ {[%clk 0:00:11]}  Kf4 {[%clk 0:00:44]} 43. Rxb4 {[%clk 0:00:11]}  Ke3 {[%clk 0:00:43]} 44. a4 {[%clk 0:00:11]}  d3 {[%clk 0:00:43]} 45. a5 {[%clk 0:00:10]}  Rh8 {[%clk 0:00:43]} 0-1


[Site "https://www.chess.com"]

[Event "Titled Tuesday Blitz September 13 Early 2022"]
[White "Tang, Andrew"]
[Black "Timmermans, Mark"]
[WhiteFideId "2059630"]
[BlackFideId "1026399"]
[WhiteElo "2584"]
[BlackElo "2460"]
[Result "0-1"]
[Round "03"]
[TimeControl "180+1"]
[Date "2022.09.13"]
[WhiteClock "0:00:06"]
[BlackClock "0:00:05"]

1. d4 {[%clk 0:03:00]}  Nf6 {[%clk 0:02:59]} 2. c4 {[%clk 0:03:00]}  e6 {[%clk 0:02:59]} 3. Nc3 {[%clk 0:03:00]}  Bb4 {[%clk 0:02:59]} 4. Qc2 {[%clk 0:03:01]}  O-O {[%clk 0:02:58]} 5. Nf3 {[%clk 0:03:01]}  d6 {[%clk 0:02:56]} 6. g3 {[%clk 0:03:00]}  b6 {[%clk 0:02:51]} 7. Bg2 {[%clk 0:03:00]}  Bb7 {[%clk 0:02:51]} 8. O-O {[%clk 0:03:01]}  Bxc3 {[%clk 0:02:49]} 9. Qxc3 {[%clk 0:03:01]}  Nbd7 {[%clk 0:02:50]} 10. b4 {[%clk 0:03:02]}  a5 {[%clk 0:02:49]} 11. b5 {[%clk 0:03:02]}  Qe7 {[%clk 0:02:48]} 12. Ba3 {[%clk 0:02:58]}  Rfe8 {[%clk 0:02:47]} 13. Rac1 {[%clk 0:02:45]}  e5 {[%clk 0:02:46]} 14. e3 {[%clk 0:02:37]}  exd4 {[%clk 0:02:42]} 15. exd4 {[%clk 0:02:36]}  Rac8 {[%clk 0:02:21]} 16. Rfd1 {[%clk 0:01:27]}  Ba8 {[%clk 0:01:06]} 17. h4 {[%clk 0:01:11]}  h6 {[%clk 0:00:58]} 18. Bh3 {[%clk 0:01:08]}  Qe4 {[%clk 0:00:56]} 19. Bg2 {[%clk 0:01:07]}  Qe7 {[%clk 0:00:55]} 20. Rd3 {[%clk 0:00:51]}  Qe4 {[%clk 0:00:50]} 21. c5 {[%clk 0:00:16]}  dxc5 {[%clk 0:00:22]} 22. dxc5 {[%clk 0:00:17]}  bxc5 {[%clk 0:00:23]} 23. Re3 {[%clk 0:00:09]}  Qf5 {[%clk 0:00:22]} 24. Rxe8+ {[%clk 0:00:08]}  Rxe8 {[%clk 0:00:20]} 25. Bxc5 {[%clk 0:00:07]}  Bxf3 {[%clk 0:00:19]} 26. Qxf3 {[%clk 0:00:05]}  Qxf3 {[%clk 0:00:18]} 27. Bxf3 {[%clk 0:00:06]}  Nxc5 {[%clk 0:00:19]} 28. Rxc5 {[%clk 0:00:06]}  Rb8 {[%clk 0:00:20]} 29. a4 {[%clk 0:00:06]}  Ne8 {[%clk 0:00:17]} 30. Bg4 {[%clk 0:00:05]}  Kf8 {[%clk 0:00:16]} 31. Bd7 {[%clk 0:00:04]}  Rb7 {[%clk 0:00:15]} 32. Bc6 {[%clk 0:00:04]}  Ra7 {[%clk 0:00:15]} 33. Bxe8 {[%clk 0:00:05]}  Kxe8 {[%clk 0:00:15]} 34. Rc6 {[%clk 0:00:06]}  Kd7 {[%clk 0:00:15]} 35. Kg2 {[%clk 0:00:06]}  Ra8 {[%clk 0:00:15]} 36. Kf3 {[%clk 0:00:06]}  g6 {[%clk 0:00:14]} 37. Kf4 {[%clk 0:00:06]}  Re8 {[%clk 0:00:08]} 38. Ra6 {[%clk 0:00:06]}  Re2 {[%clk 0:00:08]} 39. Kf3 {[%clk 0:00:07]}  Ra2 {[%clk 0:00:07]} 40. Rxa5 {[%clk 0:00:07]}  h5 {[%clk 0:00:07]} 41. Ra7 {[%clk 0:00:06]}  Kc8 {[%clk 0:00:07]} 42. Ke3 {[%clk 0:00:06]}  Kb8 {[%clk 0:00:07]} 43. Ra6 {[%clk 0:00:07]}  Kb7 {[%clk 0:00:07]} 44. f3 {[%clk 0:00:07]}  Kc8 {[%clk 0:00:04]} 45. Kf4 {[%clk 0:00:07]}  Kd8 {[%clk 0:00:04]} 46. g4 {[%clk 0:00:07]}  Ra3 {[%clk 0:00:03]} 47. gxh5 {[%clk 0:00:07]}  gxh5 {[%clk 0:00:04]} 48. Ke4 {[%clk 0:00:05]}  Kd7 {[%clk 0:00:04]} 49. Kf4 {[%clk 0:00:04]}  Ke7 {[%clk 0:00:04]} 50. Kg5 {[%clk 0:00:04]}  Rxf3 {[%clk 0:00:03]} 51. Kxh5 {[%clk 0:00:05]}  Rf5+ {[%clk 0:00:04]} 52. Kg4 {[%clk 0:00:05]}  Rc5 {[%clk 0:00:05]} 53. h5 {[%clk 0:00:05]}  Kf8 {[%clk 0:00:05]} 54. h6 {[%clk 0:00:05]}  Kg8 {[%clk 0:00:05]} 55. Rc6 {[%clk 0:00:05]}  Rd5 {[%clk 0:00:05]} 56. Rd6 {[%clk 0:00:06]}  Rxd6 {[%clk 0:00:05]} 57. a5 {[%clk 0:00:06]}  Kh7 {[%clk 0:00:05]} 58. a6 {[%clk 0:00:06]}  Kxh6 {[%clk 0:00:05]} 0-1


[Site "https://www.chess.com"]

[Event "Titled Tuesday Blitz September 13 Early 2022"]
[White "Tari, Aryan"]
[Black "Rosen, Eric"]
[WhiteFideId "1510045"]
[BlackFideId "2032562"]
[WhiteElo "2612"]
[BlackElo "2362"]
[Result "1-0"]
[Round "03"]
[TimeControl "180+1"]
[Date "2022.09.13"]
[WhiteClock "0:00:11"]
[BlackClock "0:00:03"]

1. c4 {[%clk 0:03:00]}  e6 {[%clk 0:02:58]} 2. Nc3 {[%clk 0:03:00]}  d5 {[%clk 0:02:58]} 3. d4 {[%clk 0:03:00]}  Nf6 {[%clk 0:02:58]} 4. cxd5 {[%clk 0:02:58]}  exd5 {[%clk 0:02:58]} 5. Bg5 {[%clk 0:02:57]}  c6 {[%clk 0:02:56]} 6. Qc2 {[%clk 0:02:56]}  h6 {[%clk 0:02:53]} 7. Bh4 {[%clk 0:02:56]}  Bd6 {[%clk 0:02:50]} 8. e3 {[%clk 0:02:55]}  O-O {[%clk 0:02:51]} 9. Bd3 {[%clk 0:02:55]}  Re8 {[%clk 0:02:51]} 10. Nge2 {[%clk 0:02:12]}  a5 {[%clk 0:02:48]} 11. Bg3 {[%clk 0:02:00]}  Na6 {[%clk 0:02:43]} 12. a3 {[%clk 0:01:59]}  Nc7 {[%clk 0:02:43]} 13. O-O {[%clk 0:01:59]}  Ne6 {[%clk 0:02:42]} 14. Rae1 {[%clk 0:01:53]}  Ng5 {[%clk 0:02:37]} 15. Bxd6 {[%clk 0:01:53]}  Qxd6 {[%clk 0:02:37]} 16. Ng3 {[%clk 0:01:54]}  Ng4 {[%clk 0:02:08]} 17. Nce2 {[%clk 0:01:25]}  h5 {[%clk 0:01:53]} 18. Nf4 {[%clk 0:01:22]}  g6 {[%clk 0:01:28]} 19. h3 {[%clk 0:01:13]}  Nh6 {[%clk 0:01:28]} 20. h4 {[%clk 0:00:44]}  Ne4 {[%clk 0:00:52]} 21. Bxe4 {[%clk 0:00:27]}  dxe4 {[%clk 0:00:48]} 22. Nxe4 {[%clk 0:00:28]}  Qe7 {[%clk 0:00:47]} 23. Ng5 {[%clk 0:00:28]}  Nf5 {[%clk 0:00:36]} 24. g3 {[%clk 0:00:28]}  Nd6 {[%clk 0:00:37]} 25. e4 {[%clk 0:00:25]}  Bg4 {[%clk 0:00:34]} 26. e5 {[%clk 0:00:25]}  Nb5 {[%clk 0:00:29]} 27. d5 {[%clk 0:00:21]}  Bf5 {[%clk 0:00:23]} 28. Qd2 {[%clk 0:00:20]}  Rad8 {[%clk 0:00:14]} 29. d6 {[%clk 0:00:19]}  Qf8 {[%clk 0:00:15]} 30. a4 {[%clk 0:00:15]}  f6 {[%clk 0:00:05]} 31. axb5 {[%clk 0:00:13]}  fxg5 {[%clk 0:00:05]} 32. hxg5 {[%clk 0:00:14]}  cxb5 {[%clk 0:00:04]} 33. Qd5+ {[%clk 0:00:14]}  Kg7 {[%clk 0:00:03]} 34. Qxb7+ {[%clk 0:00:13]}  Rd7 {[%clk 0:00:02]} 35. Qxb5 {[%clk 0:00:13]}  Qf7 {[%clk 0:00:01]} 36. Qxa5 {[%clk 0:00:11]}  Be6 {[%clk 0:00:02]} 37. Re3 {[%clk 0:00:11]}  h4 {[%clk 0:00:02]} 38. Rf3 {[%clk 0:00:10]}  hxg3 {[%clk 0:00:02]} 39. Nh5+ {[%clk 0:00:11]}  gxh5 {[%clk 0:00:02]} 40. Rxf7+ {[%clk 0:00:12]}  Rxf7 {[%clk 0:00:02]} 41. fxg3 {[%clk 0:00:12]}  Rxf1+ {[%clk 0:00:02]} 42. Kxf1 {[%clk 0:00:13]}  h4 {[%clk 0:00:02]} 43. gxh4 {[%clk 0:00:13]}  Bc4+ {[%clk 0:00:03]} 44. Kg1 {[%clk 0:00:13]}  Rf8 {[%clk 0:00:03]} 45. Qc7+ {[%clk 0:00:13]}  Rf7 {[%clk 0:00:03]} 46. Qxc4 {[%clk 0:00:13]}  Kg8 {[%clk 0:00:03]} 47. g6 {[%clk 0:00:12]}  Kh8 {[%clk 0:00:03]} 48. gxf7 {[%clk 0:00:11]} 1-0


[Site "https://www.chess.com"]

[Event "Titled Tuesday Blitz September 13 Early 2022"]
[White "Ter-Sahakyan, Samvel"]
[Black "Halkias, Stelios"]
[WhiteFideId "13302531"]
[BlackFideId "4201809"]
[WhiteElo "2604"]
[BlackElo "2453"]
[Result "1-0"]
[Round "03"]
[TimeControl "180+1"]
[Date "2022.09.13"]
[WhiteClock "0:00:11"]
[BlackClock "0:00:02"]

1. d4 {[%clk 0:03:00]}  Nf6 {[%clk 0:02:49]} 2. c4 {[%clk 0:03:00]}  g6 {[%clk 0:02:48]} 3. Nc3 {[%clk 0:02:56]}  Bg7 {[%clk 0:02:48]} 4. e4 {[%clk 0:02:55]}  d6 {[%clk 0:02:47]} 5. Be2 {[%clk 0:02:55]}  O-O {[%clk 0:02:45]} 6. Be3 {[%clk 0:02:54]}  Nc6 {[%clk 0:02:45]} 7. d5 {[%clk 0:02:52]}  Ne5 {[%clk 0:02:45]} 8. f4 {[%clk 0:02:46]}  Neg4 {[%clk 0:02:44]} 9. Bd2 {[%clk 0:02:47]}  Nh6 {[%clk 0:02:43]} 10. h3 {[%clk 0:02:47]}  c6 {[%clk 0:02:43]} 11. g4 {[%clk 0:02:39]}  cxd5 {[%clk 0:02:36]} 12. cxd5 {[%clk 0:02:37]}  e6 {[%clk 0:02:24]} 13. g5 {[%clk 0:02:34]}  exd5 {[%clk 0:02:21]} 14. gxh6 {[%clk 0:02:26]}  Bxh6 {[%clk 0:02:15]} 15. exd5 {[%clk 0:02:06]}  Re8 {[%clk 0:02:15]} 16. Nf3 {[%clk 0:01:57]}  Nh5 {[%clk 0:01:57]} 17. Ng5 {[%clk 0:01:56]}  Nxf4 {[%clk 0:01:38]} 18. Bxf4 {[%clk 0:01:53]}  Bxg5 {[%clk 0:01:38]} 19. Qd2 {[%clk 0:01:52]}  Bh4+ {[%clk 0:01:36]} 20. Kd1 {[%clk 0:01:52]}  Bf5 {[%clk 0:01:36]} 21. a4 {[%clk 0:01:22]}  Rc8 {[%clk 0:01:32]} 22. a5 {[%clk 0:01:20]}  Qf6 {[%clk 0:01:25]} 23. Ra4 {[%clk 0:01:18]}  Rc5 {[%clk 0:01:13]} 24. Be3 {[%clk 0:01:10]}  Rc7 {[%clk 0:00:49]} 25. Bd4 {[%clk 0:00:54]}  Qd8 {[%clk 0:00:49]} 26. Rg1 {[%clk 0:00:25]}  Bf6 {[%clk 0:00:26]} 27. Bg4 {[%clk 0:00:25]}  Bxd4 {[%clk 0:00:16]} 28. Rxd4 {[%clk 0:00:26]}  Qd7 {[%clk 0:00:15]} 29. Be2 {[%clk 0:00:15]}  Re5 {[%clk 0:00:14]} 30. h4 {[%clk 0:00:13]}  Qe7 {[%clk 0:00:14]} 31. h5 {[%clk 0:00:13]}  Qf6 {[%clk 0:00:11]} 32. hxg6 {[%clk 0:00:12]}  hxg6 {[%clk 0:00:10]} 33. Rf1 {[%clk 0:00:12]}  Kg7 {[%clk 0:00:10]} 34. Bd3 {[%clk 0:00:12]}  Rce7 {[%clk 0:00:09]} 35. Kc2 {[%clk 0:00:11]}  Bxd3+ {[%clk 0:00:04]} 36. Qxd3 {[%clk 0:00:11]}  Qg5 {[%clk 0:00:05]} 37. Rdf4 {[%clk 0:00:10]}  Qg2+ {[%clk 0:00:05]} 38. Kb3 {[%clk 0:00:10]}  Qg5 {[%clk 0:00:04]} 39. Qd4 {[%clk 0:00:10]}  f5 {[%clk 0:00:04]} 40. R4f2 {[%clk 0:00:09]}  Qf6 {[%clk 0:00:04]} 41. Qxa7 {[%clk 0:00:09]}  Re3 {[%clk 0:00:04]} 42. Qb6 {[%clk 0:00:08]}  Qe5 {[%clk 0:00:04]} 43. Rc2 {[%clk 0:00:08]}  Qxd5+ {[%clk 0:00:04]} 44. Ka3 {[%clk 0:00:08]}  Qe5 {[%clk 0:00:05]} 45. Qb4 {[%clk 0:00:08]}  d5 {[%clk 0:00:05]} 46. Rd1 {[%clk 0:00:08]}  Rd7 {[%clk 0:00:05]} 47. Qd4 {[%clk 0:00:08]}  Qxd4 {[%clk 0:00:03]} 48. Rxd4 {[%clk 0:00:09]}  Kf6 {[%clk 0:00:03]} 49. Rcd2 {[%clk 0:00:09]}  Ke5 {[%clk 0:00:02]} 50. Rxd5+ {[%clk 0:00:09]}  Rxd5 {[%clk 0:00:02]} 51. Rxd5+ {[%clk 0:00:10]}  Ke6 {[%clk 0:00:03]} 52. Rb5 {[%clk 0:00:11]}  g5 {[%clk 0:00:03]} 53. Rb6+ {[%clk 0:00:11]}  Ke5 {[%clk 0:00:02]} 54. Rxb7 {[%clk 0:00:11]}  g4 {[%clk 0:00:02]} 55. a6 {[%clk 0:00:12]}  Re1 {[%clk 0:00:02]} 56. a7 {[%clk 0:00:11]}  Ra1+ {[%clk 0:00:02]} 57. Na2 {[%clk 0:00:11]}  f4 {[%clk 0:00:02]} 58. a8=Q {[%clk 0:00:11]} 1-0


[Site "https://www.chess.com"]

[Event "Titled Tuesday Blitz September 13 Early 2022"]
[White "Tisaj, Domen"]
[Black "Gurel, Ediz"]
[WhiteFideId "14628708"]
[BlackFideId "44507356"]
[WhiteElo "2352"]
[BlackElo "1894"]
[Result "0-1"]
[Round "03"]
[TimeControl "180+1"]
[Date "2022.09.13"]
[WhiteClock "0:00:02"]
[BlackClock "0:00:17"]

1. d4 {[%clk 0:03:00]}  Nf6 {[%clk 0:02:59]} 2. c4 {[%clk 0:03:00]}  e6 {[%clk 0:02:59]} 3. Nf3 {[%clk 0:02:59]}  b6 {[%clk 0:02:58]} 4. g3 {[%clk 0:02:58]}  Bb7 {[%clk 0:02:59]} 5. Bg2 {[%clk 0:02:57]}  Be7 {[%clk 0:03:00]} 6. O-O {[%clk 0:02:57]}  O-O {[%clk 0:03:00]} 7. Nc3 {[%clk 0:02:56]}  Ne4 {[%clk 0:03:01]} 8. Qc2 {[%clk 0:02:45]}  Nxc3 {[%clk 0:02:58]} 9. Qxc3 {[%clk 0:02:43]}  c5 {[%clk 0:02:52]} 10. Rd1 {[%clk 0:02:39]}  Bf6 {[%clk 0:02:42]} 11. Be3 {[%clk 0:02:29]}  Nc6 {[%clk 0:02:39]} 12. Qd2 {[%clk 0:02:22]}  d6 {[%clk 0:02:33]} 13. b3 {[%clk 0:02:02]}  Qe7 {[%clk 0:02:29]} 14. Rac1 {[%clk 0:02:00]}  Rfd8 {[%clk 0:02:29]} 15. h4 {[%clk 0:01:48]}  h6 {[%clk 0:02:18]} 16. h5 {[%clk 0:01:36]}  Rac8 {[%clk 0:02:16]} 17. Qc2 {[%clk 0:01:26]}  d5 {[%clk 0:01:43]} 18. cxd5 {[%clk 0:01:02]}  Nxd4 {[%clk 0:01:39]} 19. Bxd4 {[%clk 0:00:55]}  cxd4 {[%clk 0:01:40]} 20. Qd2 {[%clk 0:00:52]}  Rxc1 {[%clk 0:01:37]} 21. Rxc1 {[%clk 0:00:46]}  Bxd5 {[%clk 0:01:37]} 22. Qd3 {[%clk 0:00:40]}  Qb7 {[%clk 0:01:19]} 23. Ne1 {[%clk 0:00:39]}  Bxg2 {[%clk 0:01:14]} 24. Nxg2 {[%clk 0:00:39]}  e5 {[%clk 0:01:14]} 25. f3 {[%clk 0:00:39]}  Bg5 {[%clk 0:01:12]} 26. Rc2 {[%clk 0:00:39]}  Rc8 {[%clk 0:01:10]} 27. Rxc8+ {[%clk 0:00:36]}  Qxc8 {[%clk 0:01:11]} 28. f4 {[%clk 0:00:37]}  exf4 {[%clk 0:01:10]} 29. gxf4 {[%clk 0:00:38]}  Bf6 {[%clk 0:01:10]} 30. Qe4 {[%clk 0:00:33]}  Qd7 {[%clk 0:01:07]} 31. Kf2 {[%clk 0:00:31]}  b5 {[%clk 0:01:03]} 32. Qa8+ {[%clk 0:00:30]}  Kh7 {[%clk 0:00:59]} 33. Qe4+ {[%clk 0:00:30]}  g6 {[%clk 0:00:56]} 34. hxg6+ {[%clk 0:00:29]}  fxg6 {[%clk 0:00:57]} 35. Kg3 {[%clk 0:00:24]}  h5 {[%clk 0:00:55]} 36. Kf2 {[%clk 0:00:20]}  h4 {[%clk 0:00:51]} 37. Ne1 {[%clk 0:00:15]}  Qg4 {[%clk 0:00:49]} 38. Qb7+ {[%clk 0:00:12]}  Kh6 {[%clk 0:00:45]} 39. Qf3 {[%clk 0:00:12]}  Qxf3+ {[%clk 0:00:31]} 40. Kxf3 {[%clk 0:00:12]}  Kh5 {[%clk 0:00:30]} 41. Nd3 {[%clk 0:00:09]}  g5 {[%clk 0:00:30]} 42. fxg5 {[%clk 0:00:08]}  Kxg5 {[%clk 0:00:31]} 43. Nf4 {[%clk 0:00:08]}  Kf5 {[%clk 0:00:30]} 44. Nh3 {[%clk 0:00:08]}  Be7 {[%clk 0:00:30]} 45. Nf2 {[%clk 0:00:07]}  Bd6 {[%clk 0:00:29]} 46. Nh3 {[%clk 0:00:07]}  Bg3 {[%clk 0:00:29]} 47. Ng1 {[%clk 0:00:07]}  Ke5 {[%clk 0:00:29]} 48. Nh3 {[%clk 0:00:07]}  Kd5 {[%clk 0:00:30]} 49. a4 {[%clk 0:00:03]}  bxa4 {[%clk 0:00:26]} 50. bxa4 {[%clk 0:00:04]}  a5 {[%clk 0:00:26]} 51. Ng1 {[%clk 0:00:04]}  Be1 {[%clk 0:00:26]} 52. Nh3 {[%clk 0:00:03]}  Bd2 {[%clk 0:00:24]} 53. Kg4 {[%clk 0:00:04]}  Ke4 {[%clk 0:00:17]} 54. Kxh4 {[%clk 0:00:01]}  Ke3 {[%clk 0:00:18]} 55. Ng1 {[%clk 0:00:02]}  Kf2 {[%clk 0:00:17]} 56. Nf3 {[%clk 0:00:02]}  Be3 {[%clk 0:00:17]} 57. Ne5 {[%clk 0:00:02]}  Kxe2 {[%clk 0:00:16]} 58. Nc4 {[%clk 0:00:02]}  d3 {[%clk 0:00:16]} 59. Nxa5 {[%clk 0:00:02]}  d2 {[%clk 0:00:17]} 0-1


[Site "https://www.chess.com"]

[Event "Titled Tuesday Blitz September 13 Early 2022"]
[White "Vogel, Roven"]
[Black "Xiong, Jeffery"]
[WhiteFideId "12908088"]
[BlackFideId "2047640"]
[WhiteElo "2760"]
[BlackElo "2985"]
[Result "0-1"]
[Round "03"]
[TimeControl "180+1"]
[Date "2022.09.13"]
[WhiteClock "0:01:13"]
[BlackClock "0:01:44"]

1. d4 {[%clk 0:03:00]}  d5 {[%clk 0:03:00]} 2. c4 {[%clk 0:03:00]}  e6 {[%clk 0:03:00]} 3. Nc3 {[%clk 0:03:00]}  Nf6 {[%clk 0:03:01]} 4. cxd5 {[%clk 0:03:01]}  exd5 {[%clk 0:03:02]} 5. Bg5 {[%clk 0:03:01]}  c6 {[%clk 0:03:02]} 6. e3 {[%clk 0:03:01]}  Bd6 {[%clk 0:03:03]} 7. Bd3 {[%clk 0:03:00]}  O-O {[%clk 0:03:04]} 8. Qc2 {[%clk 0:02:55]}  h6 {[%clk 0:03:04]} 9. Bh4 {[%clk 0:02:55]}  Re8 {[%clk 0:03:04]} 10. Nge2 {[%clk 0:02:51]}  a5 {[%clk 0:03:05]} 11. Bg3 {[%clk 0:02:35]}  Na6 {[%clk 0:03:05]} 12. a3 {[%clk 0:02:34]}  Nc7 {[%clk 0:03:05]} 13. O-O {[%clk 0:02:34]}  Bxg3 {[%clk 0:02:58]} 14. Nxg3 {[%clk 0:02:33]}  h5 {[%clk 0:02:59]} 15. h3 {[%clk 0:02:27]}  Qd6 {[%clk 0:02:57]} 16. Na4 {[%clk 0:02:24]}  h4 {[%clk 0:02:56]} 17. Nf5 {[%clk 0:02:23]}  Bxf5 {[%clk 0:02:55]} 18. Bxf5 {[%clk 0:02:23]}  Ne6 {[%clk 0:02:28]} 19. Bxe6 {[%clk 0:02:16]}  Rxe6 {[%clk 0:02:28]} 20. Nc5 {[%clk 0:02:17]}  Re7 {[%clk 0:02:28]} 21. Qf5 {[%clk 0:02:16]}  b6 {[%clk 0:02:24]} 22. Nd3 {[%clk 0:02:16]}  Ne4 {[%clk 0:02:24]} 23. Rac1 {[%clk 0:02:12]}  Re6 {[%clk 0:02:16]} 24. Qf4 {[%clk 0:02:08]}  Qe7 {[%clk 0:02:10]} 25. Rc2 {[%clk 0:02:05]}  c5 {[%clk 0:02:07]} 26. dxc5 {[%clk 0:02:01]}  bxc5 {[%clk 0:02:08]} 27. f3 {[%clk 0:02:00]}  Ng3 {[%clk 0:01:54]} 28. Re1 {[%clk 0:01:53]}  g5 {[%clk 0:01:52]} 29. Qa4 {[%clk 0:01:37]}  Rxe3 {[%clk 0:01:52]} 30. Rcc1 {[%clk 0:01:37]}  c4 {[%clk 0:01:49]} 31. Qc6 {[%clk 0:01:26]}  Re8 {[%clk 0:01:47]} 32. Kh2 {[%clk 0:01:13]}  cxd3 {[%clk 0:01:44]} 0-1


[Site "https://www.chess.com"]